[Event "*** Titled Tuesday Blitz"]
[Site "Chess.com"]
[Date "2019.01.01"]
[Round "2"]
[White "volcanoexplorer"]
[Black "Bigfish1995"]
[Result "0-1"]
[WhiteElo "2352"]
[BlackElo "2907"]
[TimeControl "180+2"]
[EndTime "13:22:26 PST"]
[Termination "Bigfish1995 won by resignation"]

1. e4 {[%clk 0:03:01.9]} 1... c6 {[%clk 0:02:56.4]} 2. d4 {[%clk 0:03:02.5]}
2... d5 {[%clk 0:02:57]} 3. exd5 {[%clk 0:03:03.9]} 3... cxd5 {[%clk 0:02:57.2]}
4. Bd3 {[%clk 0:03:05]} 4... Nc6 {[%clk 0:02:50]} 5. c3 {[%clk 0:03:06]} 5... e6
{[%clk 0:02:37.5]} 6. Nf3 {[%clk 0:03:05.2]} 6... Bd6 {[%clk 0:02:38.4]} 7. O-O
{[%clk 0:03:04.4]} 7... Qc7 {[%clk 0:02:38]} 8. Re1 {[%clk 0:02:56]} 8... Nge7
{[%clk 0:02:35.9]} 9. Nbd2 {[%clk 0:02:53]} 9... h6 {[%clk 0:02:21.5]} 10. Nf1
{[%clk 0:02:41.8]} 10... Bd7 {[%clk 0:02:13.6]} 11. Qe2 {[%clk 0:02:33.8]} 11...
f6 {[%clk 0:02:03.4]} 12. b4 {[%clk 0:02:01.3]} 12... O-O {[%clk 0:01:54.4]} 13.
Ng3 {[%clk 0:01:28.3]} 13... e5 {[%clk 0:01:35.1]} 14. b5 {[%clk 0:01:23.6]}
14... e4 {[%clk 0:01:36]} 15. bxc6 {[%clk 0:01:19.7]} 15... exd3 {[%clk
0:01:33.7]} 16. Qxd3 {[%clk 0:01:21.6]} 16... Bxc6 {[%clk 0:01:27.9]} 17. Nh4
{[%clk 0:01:19.9]} 17... Rae8 {[%clk 0:01:20.3]} 18. Bd2 {[%clk 0:01:14.2]}
18... Bd7 {[%clk 0:01:11.5]} 19. Re2 {[%clk 0:00:58.2]} 19... Qc4 {[%clk
0:01:10.7]} 20. Qxc4 {[%clk 0:00:56.6]} 20... dxc4 {[%clk 0:01:11.4]} 21. Rae1
{[%clk 0:00:58]} 21... g5 {[%clk 0:01:05.3]} 22. Nf3 {[%clk 0:00:53.7]} 22...
Nd5 {[%clk 0:01:05.9]} 23. Ne4 {[%clk 0:00:52.9]} 23... Ba3 {[%clk 0:01:02.6]}
24. h3 {[%clk 0:00:47.5]} 24... b6 {[%clk 0:00:57]} 25. Ng3 {[%clk 0:00:44.5]}
25... Rxe2 {[%clk 0:00:53.2]} 26. Rxe2 {[%clk 0:00:46.4]} 26... Re8 {[%clk
0:00:48.5]} 27. Rxe8+ {[%clk 0:00:45.7]} 27... Bxe8 {[%clk 0:00:49.4]} 28. Nf5
{[%clk 0:00:46.7]} 28... Bg6 {[%clk 0:00:26.5]} 29. Ne3 {[%clk 0:00:46.7]} 29...
Nxe3 {[%clk 0:00:26.6]} 30. Bxe3 {[%clk 0:00:39.1]} 30... Bb1 {[%clk 0:00:26.8]}
31. d5 {[%clk 0:00:33.5]} 31... Bxa2 {[%clk 0:00:26.5]} 32. Nd4 {[%clk
0:00:33.5]} 32... a6 {[%clk 0:00:19.4]} 33. Nc6 {[%clk 0:00:21.9]} 33... b5
{[%clk 0:00:18.2]} 34. Kf1 {[%clk 0:00:19.7]} 34... Kf7 {[%clk 0:00:18.2]} 35.
Ke2 {[%clk 0:00:20.1]} 35... Bb1 {[%clk 0:00:19]} 36. Kd2 {[%clk 0:00:16.9]}
36... Be4 {[%clk 0:00:19.4]} 37. Nb8 {[%clk 0:00:16.9]} 37... Bxd5 {[%clk
0:00:20]} 38. Nxa6 {[%clk 0:00:17.6]} 38... Bxg2 {[%clk 0:00:21.1]} 39. Nc7
{[%clk 0:00:15.1]} 39... Bc6 {[%clk 0:00:21.8]} 40. Na6 {[%clk 0:00:14.2]} 40...
Bd6 {[%clk 0:00:22.6]} 41. Nb4 {[%clk 0:00:11.8]} 41... Bxb4 {[%clk 0:00:23.6]}
42. cxb4 {[%clk 0:00:13.7]} 42... Bd7 {[%clk 0:00:24.6]} 43. h4 {[%clk
0:00:14.8]} 43... gxh4 {[%clk 0:00:24.9]} 44. Bxh6 {[%clk 0:00:15.9]} 44... Kg6
{[%clk 0:00:26.2]} 45. Bf4 {[%clk 0:00:17]} 45... Kf5 {[%clk 0:00:27.4]} 46. Ke3
{[%clk 0:00:18.1]} 46... Kg4 {[%clk 0:00:28.6]} 47. Bd6 {[%clk 0:00:18]} 47...
Bc6 {[%clk 0:00:29.5]} 48. Bc7 {[%clk 0:00:15.7]} 48... Kh3 {[%clk 0:00:28.9]}
49. Bd8 {[%clk 0:00:11.1]} 49... Kg2 {[%clk 0:00:30]} 50. Bxf6 {[%clk
0:00:11.9]} 50... h3 {[%clk 0:00:31.5]} 51. Be5 {[%clk 0:00:13.1]} 51... h2
{[%clk 0:00:32.8]} 52. Bxh2 {[%clk 0:00:14.2]} 52... Kxh2 {[%clk 0:00:34.2]} 53.
f4 {[%clk 0:00:16.1]} 53... Bd7 {[%clk 0:00:35.2]} 54. Kd4 {[%clk 0:00:17.4]}
54... Kg3 {[%clk 0:00:35.8]} 55. Ke4 {[%clk 0:00:18.1]} 55... Kg4 {[%clk
0:00:36.3]} 0-1

[Event "*** Titled Tuesday Blitz"]
[Site "Chess.com"]
[Date "2019.01.01"]
[Round "2"]
[White "LawrenceTrent"]
[Black "Kacparov"]
[Result "0-1"]
[WhiteElo "2511"]
[BlackElo "2708"]
[TimeControl "180+2"]
[EndTime "13:22:27 PST"]
[Termination "Kacparov won by resignation"]

1. e4 {[%clk 0:03:01.9]} 1... c5 {[%clk 0:03:00.6]} 2. b3 {[%clk 0:03:00.8]}
2... Nc6 {[%clk 0:03:01.4]} 3. Bb2 {[%clk 0:03:01.8]} 3... Nf6 {[%clk
0:03:02.4]} 4. e5 {[%clk 0:03:02.3]} 4... Nd5 {[%clk 0:03:03.7]} 5. Nf3 {[%clk
0:03:03.7]} 5... g6 {[%clk 0:02:59]} 6. h4 {[%clk 0:02:43.9]} 6... Bg7 {[%clk
0:02:59.9]} 7. h5 {[%clk 0:02:39.2]} 7... d6 {[%clk 0:02:57.9]} 8. Bb5 {[%clk
0:02:34.6]} 8... Bg4 {[%clk 0:02:52.6]} 9. Rh4 {[%clk 0:02:01.6]} 9... gxh5
{[%clk 0:02:49.2]} 10. Qe2 {[%clk 0:01:56.4]} 10... Nf4 {[%clk 0:02:47.5]} 11.
Qf1 {[%clk 0:01:54.1]} 11... a6 {[%clk 0:02:33.6]} 12. Bxc6+ {[%clk 0:01:54]}
12... bxc6 {[%clk 0:02:35.5]} 13. Nh2 {[%clk 0:01:46.5]} 13... Ng6 {[%clk
0:02:35.9]} 14. Rxg4 {[%clk 0:01:37.9]} 14... hxg4 {[%clk 0:02:36.9]} 15. Nxg4
{[%clk 0:01:39.3]} 15... h5 {[%clk 0:02:36.6]} 16. Ne3 {[%clk 0:01:38.5]} 16...
Nxe5 {[%clk 0:02:34.6]} 17. Nc3 {[%clk 0:01:39.7]} 17... Qd7 {[%clk 0:02:35]}
18. O-O-O {[%clk 0:01:40.2]} 18... Ng4 {[%clk 0:02:31.5]} 19. Nc4 {[%clk
0:01:38.8]} 19... Qf5 {[%clk 0:02:26]} 20. f3 {[%clk 0:01:34.7]} 20... Ne5
{[%clk 0:02:23.7]} 21. Ne3 {[%clk 0:01:35.8]} 21... Qg6 {[%clk 0:02:23.1]} 22.
f4 {[%clk 0:01:32.4]} 22... Ng4 {[%clk 0:02:24]} 23. Nc4 {[%clk 0:01:33.2]}
23... O-O {[%clk 0:02:20.2]} 24. f5 {[%clk 0:01:32.5]} 24... Qh6 {[%clk
0:02:18.4]} 25. Kb1 {[%clk 0:01:32.9]} 25... d5 {[%clk 0:02:18.4]} 26. Na5
{[%clk 0:01:34]} 26... e5 {[%clk 0:02:03.1]} 27. Bc1 {[%clk 0:01:30.5]} 27... e4
{[%clk 0:02:02.8]} 28. Na4 {[%clk 0:01:28.3]} 28... Rfe8 {[%clk 0:01:40.2]} 29.
Nxc5 {[%clk 0:01:27.1]} 29... Qf6 {[%clk 0:01:40.9]} 30. c3 {[%clk 0:01:28.1]}
30... Nh6 {[%clk 0:01:33.9]} 31. Qe2 {[%clk 0:01:26.3]} 31... Qxf5 {[%clk
0:01:34.6]} 32. Rf1 {[%clk 0:01:27.1]} 32... Qg4 {[%clk 0:01:35.5]} 33. Qf2
{[%clk 0:01:27.5]} 33... Qg6 {[%clk 0:01:33.9]} 34. Qe2 {[%clk 0:01:18.7]} 34...
Ng4 {[%clk 0:01:32]} 35. Bb2 {[%clk 0:01:16.2]} 35... Ne5 {[%clk 0:01:24.3]} 36.
Rh1 {[%clk 0:01:14.3]} 36... Qg4 {[%clk 0:01:23.6]} 37. Qf1 {[%clk 0:01:14.6]}
37... Rac8 {[%clk 0:01:16.3]} 38. b4 {[%clk 0:01:13.6]} 38... Nd3 {[%clk
0:01:12.6]} 39. Nxd3 {[%clk 0:01:12.1]} 39... exd3 {[%clk 0:01:14.5]} 40. Qxd3
{[%clk 0:01:12.3]} 40... Qg6 {[%clk 0:01:15.6]} 41. Kc2 {[%clk 0:01:11.2]} 41...
Re2 {[%clk 0:01:15.7]} 42. g3 {[%clk 0:01:05]} 42... c5 {[%clk 0:01:11.6]} 43.
a3 {[%clk 0:01:03.7]} 43... c4 {[%clk 0:01:11.5]} 44. Qxg6 {[%clk 0:01:04.7]}
44... fxg6 {[%clk 0:01:13.4]} 45. Rg1 {[%clk 0:00:57.8]} 45... Bh6 {[%clk
0:01:10.9]} 46. Bc1 {[%clk 0:00:58.2]} 46... Kh7 {[%clk 0:01:06.5]} 47. a4
{[%clk 0:00:59]} 47... Re6 {[%clk 0:01:04.3]} 48. Nb7 {[%clk 0:00:59.4]} 48...
Bf8 {[%clk 0:01:03.3]} 49. Rf1 {[%clk 0:00:57.4]} 49... Kg7 {[%clk 0:01:02.3]}
50. Ba3 {[%clk 0:00:53.5]} 50... Be7 {[%clk 0:01:02.6]} 51. Nc5 {[%clk
0:00:54.1]} 51... Bxc5 {[%clk 0:01:03.3]} 52. bxc5 {[%clk 0:00:56]} 52... Rcc6
{[%clk 0:00:59.8]} 53. Rf2 {[%clk 0:00:51.1]} 53... Re4 {[%clk 0:00:59.1]} 54.
d3 {[%clk 0:00:51.4]} 54... Rg4 {[%clk 0:01:00.1]} 55. Rf3 {[%clk 0:00:49.6]}
55... cxd3+ {[%clk 0:00:59.9]} 56. Kxd3 {[%clk 0:00:50.7]} 56... Rxa4 {[%clk
0:01:00.3]} 57. Bb2 {[%clk 0:00:50.8]} 57... Rc4 {[%clk 0:01:01.1]} 58. Ba3
{[%clk 0:00:50.2]} 58... Ra4 {[%clk 0:01:00]} 59. Bb2 {[%clk 0:00:43.9]} 59...
Rxc5 {[%clk 0:01:00.9]} 60. c4+ {[%clk 0:00:43]} 60... Kg8 {[%clk 0:01:02]} 61.
Rf6 {[%clk 0:00:42.9]} 61... dxc4+ {[%clk 0:01:01.5]} 62. Kd4 {[%clk 0:00:44.1]}
62... Rg5 {[%clk 0:00:55.7]} 63. Bc3 {[%clk 0:00:42.4]} 63... Rxg3 {[%clk
0:00:55]} 64. Rb6 {[%clk 0:00:41.5]} 64... Rxc3 {[%clk 0:00:52.8]} 65. Kxc3
{[%clk 0:00:42.4]} 65... Kh7 {[%clk 0:00:53.8]} 0-1

[Event "*** Titled Tuesday Blitz"]
[Site "Chess.com"]
[Date "2019.01.01"]
[Round "2"]
[White "xxysoul6"]
[Black "iLuusions"]
[Result "1-0"]
[WhiteElo "2903"]
[BlackElo "2570"]
[TimeControl "180+2"]
[EndTime "13:22:28 PST"]
[Termination "xxysoul6 won by resignation"]

1. d4 {[%clk 0:03:01.9]} 1... Nf6 {[%clk 0:03:00.7]} 2. c4 {[%clk 0:03:03.5]}
2... e6 {[%clk 0:03:00.9]} 3. g3 {[%clk 0:03:02.6]} 3... c5 {[%clk 0:03:00.5]}
4. Nf3 {[%clk 0:03:03.6]} 4... cxd4 {[%clk 0:02:59.9]} 5. Nxd4 {[%clk
0:03:05.5]} 5... d5 {[%clk 0:03:01.8]} 6. Bg2 {[%clk 0:03:03.6]} 6... e5 {[%clk
0:02:59]} 7. Nb3 {[%clk 0:03:04.2]} 7... d4 {[%clk 0:03:00.4]} 8. O-O {[%clk
0:03:04]} 8... Nc6 {[%clk 0:02:55.6]} 9. f4 {[%clk 0:03:05.3]} 9... e4 {[%clk
0:02:50.9]} 10. f5 {[%clk 0:03:06.7]} 10... Be7 {[%clk 0:02:43.6]} 11. e3 {[%clk
0:02:58.9]} 11... dxe3 {[%clk 0:02:39.6]} 12. Qxd8+ {[%clk 0:02:57]} 12... Bxd8
{[%clk 0:02:34.9]} 13. Bxe3 {[%clk 0:02:56.1]} 13... O-O {[%clk 0:02:20.1]} 14.
Nc3 {[%clk 0:02:56.9]} 14... Re8 {[%clk 0:02:21.3]} 15. Nb5 {[%clk 0:01:56]}
15... Ng4 {[%clk 0:02:08.8]} 16. Bc5 {[%clk 0:01:54.6]} 16... b6 {[%clk
0:01:34.5]} 17. Nd6 {[%clk 0:01:29.8]} 17... Re5 {[%clk 0:01:34.9]} 18. h3
{[%clk 0:01:17.5]} 18... Nf6 {[%clk 0:01:28.1]} 19. Be3 {[%clk 0:01:18]} 19...
Be7 {[%clk 0:01:19.9]} 20. Rad1 {[%clk 0:01:19.2]} 20... Bxd6 {[%clk 0:01:06.1]}
21. Rxd6 {[%clk 0:01:19.5]} 21... Bb7 {[%clk 0:01:08]} 22. g4 {[%clk 0:01:19.3]}
22... h6 {[%clk 0:01:09]} 23. Rfd1 {[%clk 0:01:18.8]} 23... Na5 {[%clk
0:01:08.2]} 24. Rd8+ {[%clk 0:01:18.9]} 24... Rxd8 {[%clk 0:01:08.2]} 25. Rxd8+
{[%clk 0:01:20.8]} 25... Kh7 {[%clk 0:01:09]} 26. Nxa5 {[%clk 0:01:22]} 26...
Rxa5 {[%clk 0:01:09.8]} 27. a3 {[%clk 0:01:22.2]} 27... Re5 {[%clk 0:01:03]} 28.
Kf2 {[%clk 0:01:20.9]} 28... Re8 {[%clk 0:01:03.5]} 29. Rd6 {[%clk 0:01:22.1]}
29... Rc8 {[%clk 0:00:55]} 30. b3 {[%clk 0:01:23]} 30... Rc7 {[%clk 0:00:46.6]}
31. Kg3 {[%clk 0:01:20.3]} 31... Nd7 {[%clk 0:00:45.9]} 32. Kf4 {[%clk
0:01:18.7]} 32... g5+ {[%clk 0:00:35.1]} 33. fxg6+ {[%clk 0:01:18.7]} 33... fxg6
{[%clk 0:00:37]} 34. Bd4 {[%clk 0:01:17.9]} 34... g5+ {[%clk 0:00:33.9]} 35. Ke3
{[%clk 0:01:19]} 35... Nc5 {[%clk 0:00:35.1]} 36. b4 {[%clk 0:00:59.9]} 36...
Nb3 {[%clk 0:00:35.9]} 37. Be5 {[%clk 0:00:59.2]} 37... Rf7 {[%clk 0:00:21.5]}
38. Bxe4+ {[%clk 0:00:56.1]} 38... Bxe4 {[%clk 0:00:22.3]} 39. Kxe4 {[%clk
0:00:58]} 39... a5 {[%clk 0:00:23.6]} 40. Rxb6 {[%clk 0:00:55.5]} 40... Nd2+
{[%clk 0:00:24]} 41. Kd5 {[%clk 0:00:56.6]} 41... Rd7+ {[%clk 0:00:23.6]} 42.
Ke6 {[%clk 0:00:57.4]} 42... Nxc4 {[%clk 0:00:24.1]} 43. Kxd7 {[%clk 0:00:53.8]}
43... Nxb6+ {[%clk 0:00:24.7]} 44. Ke6 {[%clk 0:00:53.6]} 44... axb4 {[%clk
0:00:23.2]} 45. axb4 {[%clk 0:00:55.5]} 45... Kg6 {[%clk 0:00:24.9]} 46. b5
{[%clk 0:00:56.6]} 46... h5 {[%clk 0:00:26.2]} 47. Bd4 {[%clk 0:00:57.3]} 47...
Nc4 {[%clk 0:00:25.5]} 48. b6 {[%clk 0:00:57.1]} 48... Na5 {[%clk 0:00:21]} 49.
Be3 {[%clk 0:00:54.8]} 49... hxg4 {[%clk 0:00:22.2]} 50. hxg4 {[%clk 0:00:55.9]}
50... Nb7 {[%clk 0:00:21.7]} 51. Kd7 {[%clk 0:00:56.6]} 51... Na5 {[%clk
0:00:23.1]} 52. Bd2 {[%clk 0:00:55.9]} 52... Nb7 {[%clk 0:00:19.8]} 53. Kc6
{[%clk 0:00:57.1]} 53... Nd8+ {[%clk 0:00:19.9]} 54. Kc7 {[%clk 0:00:57.4]}
54... Ne6+ {[%clk 0:00:21.4]} 55. Kc8 {[%clk 0:00:58.7]} 55... Nc5 {[%clk
0:00:22]} 56. b7 {[%clk 0:01:00.3]} 56... Na6 {[%clk 0:00:22.5]} 57. Bc3 {[%clk
0:00:58.4]} 57... Kf7 {[%clk 0:00:23.3]} 58. Kd7 {[%clk 0:00:59.8]} 58... Nc5+
{[%clk 0:00:22.5]} 59. Kc6 {[%clk 0:00:59.9]} 59... Nxb7 {[%clk 0:00:23.5]} 60.
Kxb7 {[%clk 0:01:00.9]} 60... Ke6 {[%clk 0:00:25.4]} 61. Kc6 {[%clk 0:01:02.2]}
1-0

[Event "*** Titled Tuesday Blitz"]
[Site "Chess.com"]
[Date "2019.01.01"]
[Round "2"]
[White "kleinebeer98"]
[Black "oskariot"]
[Result "0-1"]
[WhiteElo "2696"]
[BlackElo "2534"]
[TimeControl "180+2"]
[EndTime "13:22:33 PST"]
[Termination "oskariot won by checkmate"]

1. e4 {[%clk 0:03:01.9]} 1... e6 {[%clk 0:03:00.8]} 2. d4 {[%clk 0:02:59.3]}
2... d5 {[%clk 0:03:02.1]} 3. Bd3 {[%clk 0:03:01.2]} 3... dxe4 {[%clk
0:03:00.4]} 4. Bxe4 {[%clk 0:03:03.1]} 4... Nf6 {[%clk 0:03:02]} 5. Bf3 {[%clk
0:03:04.4]} 5... c5 {[%clk 0:03:03.5]} 6. Ne2 {[%clk 0:03:06]} 6... Nc6 {[%clk
0:03:05]} 7. Be3 {[%clk 0:03:07.1]} 7... Nd5 {[%clk 0:03:01.4]} 8. Bxd5 {[%clk
0:03:07.3]} 8... Qxd5 {[%clk 0:03:01.6]} 9. Nbc3 {[%clk 0:03:09.2]} 9... Qxg2
{[%clk 0:02:46.5]} 10. Rg1 {[%clk 0:03:10]} 10... Qxh2 {[%clk 0:02:48]} 11. Bf4
{[%clk 0:03:11.3]} 11... Qh5 {[%clk 0:02:35.9]} 12. Nb5 {[%clk 0:03:06.7]} 12...
e5 {[%clk 0:02:29.8]} 13. dxe5 {[%clk 0:02:43]} 13... Nxe5 {[%clk 0:02:29.2]}
14. Nc7+ {[%clk 0:02:39.1]} 14... Ke7 {[%clk 0:02:27.7]} 15. Bxe5 {[%clk
0:02:28.6]} 15... Qxe5 {[%clk 0:02:29.6]} 16. Nxa8 {[%clk 0:02:25.9]} 16... g6
{[%clk 0:02:14.6]} 17. Qd2 {[%clk 0:02:01.8]} 17... Bg7 {[%clk 0:02:10.3]} 18.
Qe3 {[%clk 0:01:43.3]} 18... Be6 {[%clk 0:02:04.4]} 19. Nc7 {[%clk 0:01:24.3]}
19... Qxc7 {[%clk 0:02:00.5]} 20. Nc3 {[%clk 0:01:24.3]} 20... Rd8 {[%clk
0:01:53.5]} 21. Ne4 {[%clk 0:01:21.3]} 21... Rd5 {[%clk 0:01:36.6]} 22. Rd1
{[%clk 0:01:11.5]} 22... Bd4 {[%clk 0:01:29.8]} 23. Rxd4 {[%clk 0:00:49.8]}
23... Rxd4 {[%clk 0:00:59.2]} 24. Qg5+ {[%clk 0:00:50.2]} 24... Kd7 {[%clk
0:01:00.6]} 25. Nxc5+ {[%clk 0:00:36.1]} 25... Kc8 {[%clk 0:00:54.6]} 26. Nxe6
{[%clk 0:00:27.7]} 26... Re4+ {[%clk 0:00:55.2]} 27. Kd1 {[%clk 0:00:22.7]}
27... Rxe6 {[%clk 0:00:53.1]} 28. Kc1 {[%clk 0:00:20.3]} 28... h5 {[%clk
0:00:47.7]} 29. Rd1 {[%clk 0:00:18]} 29... Re8 {[%clk 0:00:46.5]} 30. a4 {[%clk
0:00:18.2]} 30... Re2 {[%clk 0:00:38.7]} 31. c3 {[%clk 0:00:18.4]} 31... Rxf2
{[%clk 0:00:36.7]} 32. Kb1 {[%clk 0:00:14.7]} 32... Re2 {[%clk 0:00:36.2]} 33.
a5 {[%clk 0:00:14.9]} 33... a6 {[%clk 0:00:28.6]} 34. Qd5 {[%clk 0:00:14.4]}
34... Re5 {[%clk 0:00:26.8]} 35. Qd4 {[%clk 0:00:14.6]} 35... Kb8 {[%clk
0:00:24.3]} 36. b4 {[%clk 0:00:13.8]} 36... Re8 {[%clk 0:00:23.9]} 37. Kb2
{[%clk 0:00:13.8]} 37... Ka8 {[%clk 0:00:21.7]} 38. Kb3 {[%clk 0:00:14]} 38...
Qc6 {[%clk 0:00:21.6]} 39. c4 {[%clk 0:00:15.2]} 39... Qf3+ {[%clk 0:00:21.2]}
40. Rd3 {[%clk 0:00:16.2]} 40... Qe4 {[%clk 0:00:20.5]} 41. Qd7 {[%clk 0:00:16]}
41... h4 {[%clk 0:00:21.4]} 42. b5 {[%clk 0:00:17.1]} 42... axb5 {[%clk
0:00:21]} 43. cxb5 {[%clk 0:00:18.6]} 43... Qe6+ {[%clk 0:00:22.1]} 44. Qxe6
{[%clk 0:00:20.2]} 44... fxe6 {[%clk 0:00:23.7]} 45. Rd7 {[%clk 0:00:20.5]}
45... Rh8 {[%clk 0:00:23.5]} 46. Kb4 {[%clk 0:00:20.6]} 46... h3 {[%clk
0:00:24.8]} 47. Kc5 {[%clk 0:00:21.9]} 47... h2 {[%clk 0:00:26.1]} 48. Kb6
{[%clk 0:00:22.7]} 48... h1=Q {[%clk 0:00:26.9]} 49. a6 {[%clk 0:00:23.7]} 49...
bxa6 {[%clk 0:00:26.7]} 50. Kxa6 {[%clk 0:00:25.6]} 50... Qa1+ {[%clk
0:00:23.5]} 51. Kb6 {[%clk 0:00:26.5]} 51... Qg1+ {[%clk 0:00:24.6]} 52. Ka6
{[%clk 0:00:27.2]} 52... Rb8 {[%clk 0:00:22.1]} 53. Ra7+ {[%clk 0:00:23.9]}
53... Qxa7# {[%clk 0:00:22.6]} 0-1

[Event "*** Titled Tuesday Blitz"]
[Site "Chess.com"]
[Date "2019.01.01"]
[Round "2"]
[White "TastyFrenchFries"]
[Black "Pakarma"]
[Result "1-0"]
[WhiteElo "2415"]
[BlackElo "2456"]
[TimeControl "180+2"]
[EndTime "13:22:36 PST"]
[Termination "TastyFrenchFries won by checkmate"]

1. Na3 {[%clk 0:02:25]} 1... d5 {[%clk 0:02:56.5]} 2. c4 {[%clk 0:02:21]} 2...
e6 {[%clk 0:02:55.8]} 3. Nh3 {[%clk 0:02:20.7]} 3... Nf6 {[%clk 0:02:55.4]} 4.
d3 {[%clk 0:02:18]} 4... Be7 {[%clk 0:02:52.5]} 5. g3 {[%clk 0:02:15.8]} 5...
O-O {[%clk 0:02:53.3]} 6. Bg2 {[%clk 0:02:13.9]} 6... c5 {[%clk 0:02:48.7]} 7.
O-O {[%clk 0:02:12.5]} 7... Nc6 {[%clk 0:02:49.6]} 8. Nf4 {[%clk 0:02:10.2]}
8... Rb8 {[%clk 0:02:41]} 9. h4 {[%clk 0:02:07.8]} 9... b6 {[%clk 0:02:38.8]}
10. cxd5 {[%clk 0:02:02.4]} 10... exd5 {[%clk 0:02:38.7]} 11. Nb5 {[%clk
0:02:02.1]} 11... Bb7 {[%clk 0:02:36]} 12. a4 {[%clk 0:01:58.3]} 12... a6 {[%clk
0:02:32.2]} 13. Nc3 {[%clk 0:01:59.2]} 13... d4 {[%clk 0:02:32.7]} 14. Ne4
{[%clk 0:01:59.5]} 14... Nxe4 {[%clk 0:02:31.1]} 15. dxe4 {[%clk 0:02:01.4]}
15... Ne5 {[%clk 0:02:20.5]} 16. Nd5 {[%clk 0:01:44.5]} 16... f5 {[%clk
0:01:54.9]} 17. Qb3 {[%clk 0:01:42.5]} 17... c4 {[%clk 0:01:52.2]} 18. Qxb6
{[%clk 0:01:41.9]} 18... Qxb6 {[%clk 0:01:53.2]} 19. Nxb6 {[%clk 0:01:43.4]}
19... fxe4 {[%clk 0:01:48.3]} 20. Bf4 {[%clk 0:01:42]} 20... Rxf4 {[%clk
0:01:09.7]} 21. gxf4 {[%clk 0:01:43.9]} 21... Ng4 {[%clk 0:01:10.2]} 22. Nxc4
{[%clk 0:01:39.2]} 22... Bd5 {[%clk 0:00:42.4]} 23. Rac1 {[%clk 0:01:37.3]}
23... Bxh4 {[%clk 0:00:38.6]} 24. Nd6 {[%clk 0:01:23.3]} 24... Nf6 {[%clk
0:00:36.6]} 25. Nf5 {[%clk 0:01:18.4]} 25... g5 {[%clk 0:00:37.6]} 26. Ne7+
{[%clk 0:01:14.8]} 26... Kf8 {[%clk 0:00:30.2]} 27. Rc7 {[%clk 0:01:13.8]} 27...
Rxb2 {[%clk 0:00:20.5]} 28. fxg5 {[%clk 0:01:12.3]} 28... Bxg5 {[%clk
0:00:19.7]} 29. Nxd5 {[%clk 0:01:11.8]} 29... Nxd5 {[%clk 0:00:21.6]} 30. Rc5
{[%clk 0:01:11.5]} 30... Nf4 {[%clk 0:00:20.9]} 31. Rxg5 {[%clk 0:01:10.6]}
31... Nxe2+ {[%clk 0:00:22.8]} 32. Kh2 {[%clk 0:01:09.8]} 32... d3 {[%clk
0:00:22.2]} 33. Bxe4 {[%clk 0:01:09.2]} 33... d2 {[%clk 0:00:23.6]} 34. Rd5
{[%clk 0:01:01.3]} 34... Nc3 {[%clk 0:00:24.6]} 35. Rf5+ {[%clk 0:01:01.2]}
35... Ke7 {[%clk 0:00:25.1]} 36. Bf3 {[%clk 0:00:58.1]} 36... Rb4 {[%clk
0:00:21]} 37. Rc5 {[%clk 0:00:57.3]} 37... Nxa4 {[%clk 0:00:21.1]} 38. Re5+
{[%clk 0:00:56.9]} 38... Kf6 {[%clk 0:00:19.1]} 39. Rd5 {[%clk 0:00:57.3]} 39...
Rb2 {[%clk 0:00:19.7]} 40. Rd1 {[%clk 0:00:52.9]} 40... Rb3 {[%clk 0:00:20.7]}
41. Kg2 {[%clk 0:00:52.1]} 41... Nc3 {[%clk 0:00:21.3]} 42. Rd6+ {[%clk
0:00:50.9]} 42... Ke5 {[%clk 0:00:21.9]} 43. R1xd2 {[%clk 0:00:52.2]} 43... a5
{[%clk 0:00:17.9]} 44. Ra6 {[%clk 0:00:49.7]} 44... a4 {[%clk 0:00:18.9]} 45.
Bc6 {[%clk 0:00:48]} 45... a3 {[%clk 0:00:20.2]} 46. Ra5+ {[%clk 0:00:47]} 46...
Kf6 {[%clk 0:00:20.1]} 47. Rd6+ {[%clk 0:00:47.9]} 47... Ke7 {[%clk 0:00:20.1]}
48. Rh6 {[%clk 0:00:48.4]} 48... a2 {[%clk 0:00:18.9]} 49. Rxh7+ {[%clk
0:00:49.7]} 49... Kd6 {[%clk 0:00:19.4]} 50. Rh6+ {[%clk 0:00:49.8]} 50... Kc7
{[%clk 0:00:20.7]} 51. Bf3 {[%clk 0:00:42.2]} 51... Rb1 {[%clk 0:00:17.3]} 52.
Ra7+ {[%clk 0:00:42.8]} 52... Kb8 {[%clk 0:00:18.7]} 53. Ra8+ {[%clk 0:00:43.3]}
53... Kc7 {[%clk 0:00:19.7]} 54. Ra7+ {[%clk 0:00:44.6]} 54... Kb8 {[%clk
0:00:20.8]} 55. Rha6 {[%clk 0:00:44.3]} 55... Rb5 {[%clk 0:00:16.7]} 56. Ra8+
{[%clk 0:00:44]} 56... Kc7 {[%clk 0:00:17.8]} 57. R8a7+ {[%clk 0:00:45.5]} 57...
Kb8 {[%clk 0:00:18.7]} 58. Re7 {[%clk 0:00:42.5]} 58... Rg5+ {[%clk 0:00:19.1]}
59. Kf1 {[%clk 0:00:43.1]} 59... Rb5 {[%clk 0:00:19.6]} 60. Ra8# {[%clk
0:00:43]} 1-0